bitfinex/quotes_SOLUSD_20260311
["timestamp","ask_amount","ask_price","bid_price","bid_amount"]
[1773256235406,1.37984098,87.388,87.351,1.45085794]
[1773256236029,1.37984098,87.386,87.353,1.45085794]
[1773256236223,1.37984098,87.386,87.361,1.45085794]
[1773256236437,11.44334969,87.387,87.371,1.45085794]
[1773256237638,28.60673745,87.392,87.371,1.45085794]
[1773256238337,1.37984098,87.391,87.371,1.45085794]
[1773256238928,1.37984098,87.391,87.362,1.45085794]
[1773256239330,11.44243311,87.394,87.362,1.45085794]
[1773256239532,28.60356749,87.402,87.371,1.45085794]
[1773256239735,28.60356749,87.402,87.372,1.45085794]
[1773256239736,1.37984098,87.402,87.372,1.45085794]
[1773256240859,1.37984098,87.402,87.363,1.36201319]
[1773256241025,40.04439206,87.403,87.361,1.36201319]
[1773256241026,1.37746611,87.399,87.361,1.36201319]
[1773256241225,1.37746611,87.397,87.361,1.36201319]
[1773256241427,1.37746611,87.389,87.354,1.36201319]
[1773256241627,1.37746611,87.385,87.354,1.36201319]
[1773256241944,1.37746611,87.379,87.347,1.36201319]
[1773256242251,1.37746611,87.369,87.333,1.36201319]
[1773256242430,1.37746611,87.369,87.341,1.36201319]
[1773256243039,1.37746611,87.378,87.341,1.36201319]
[1773256243246,2.93737576,87.38,87.332,40.07694773]
[1773256243247,1.37746611,87.38,87.351,1.36201319]
[1773256245749,11.44439739,87.379,87.351,1.36201319]
[1773256246950,1.37746611,87.381,87.353,1.36201319]
[1773256247248,1.37746611,87.38,87.353,1.36201319]
[1773256247844,11.44439739,87.379,87.354,11.44767268]
[1773256248046,11.44439739,87.379,87.355,1.36201319]
[1773256248442,1.37746611,87.378,87.348,1.36201319]
[1773256250145,1.3319391,87.376,87.339,1.33181292]
[1773256250351,1.3319391,87.369,87.339,1.33181292]
[1773256250741,1.3319391,87.369,87.34,1.33181292]
[1773256251647,1.3319391,87.376,87.341,1.33181292]
[1773256251849,1.3319391,87.374,87.341,1.33181292]
[1773256252046,2.93549971,87.37,87.341,1.33181292]
[1773256252235,1.3319391,87.369,87.341,1.33181292]
[1773256253647,40.0572246,87.375,87.341,1.33181292]
[1773256254355,40.0572246,87.375,87.316,61.4]
[1773256254356,11.44492131,87.375,87.351,1.33181292]
[1773256254764,12.77686041,87.375,87.351,1.33181292]
[1773256255858,1.3319391,87.374,87.351,1.33181292]
[1773256256544,11.44518329,87.373,87.351,1.33181292]
[1773256258971,28.61230329,87.375,87.351,1.33181292]
[1773256259151,29.94424239,87.375,87.351,1.33181292]
[1773256259554,1.3319391,87.374,87.351,1.33181292]
[1773256260348,1.3319391,87.374,87.34,2.93549971]
[1773256260543,1.3319391,87.369,87.33,14.38628673]
[1773256260747,1.3319391,87.369,87.32,2.92]
[1773256260948,1.3319391,87.369,87.32,5.85549971]
[1773256261255,1.3319391,87.366,87.321,11.45199894]
[1773256261643,1.3319391,87.359,87.32,2.92]
[1773256261842,1.3319391,87.349,87.32,2.92]
[1773256262054,1.3319391,87.349,87.321,11.45199894]
[1773256262444,1.3319391,87.349,87.32,7.18731263]
[1773256262861,1.3319391,87.349,87.321,1.33181292]
[1773256263060,1.3319391,87.349,87.32,5.85549971]
[1773256263061,1.3319391,87.349,87.324,1.33181292]
[1773256263364,11.44845903,87.348,87.324,1.33181292]
[1773256263558,1.3319391,87.347,87.324,1.33181292]
[1773256264153,11.44845903,87.348,87.324,1.33181292]
[1773256264358,1.3319391,87.373,87.341,1.33181292]
[1773256264560,1.3319391,87.373,87.351,1.33181292]
[1773256264858,11.44456759,87.378,87.351,1.33181292]
[1773256265565,11.44456759,87.378,87.352,1.33181292]
[1773256265763,11.44456759,87.378,87.361,1.33181292]
[1773256265943,11.44358661,87.386,87.361,1.33181292]
[1773256266561,12.77552571,87.386,87.361,1.33181292]
[1773256267668,1.3319391,87.385,87.362,11.44662439]
[1773256267962,1.3319391,87.385,87.363,1.33181292]
[1773256268368,11.44358661,87.386,87.363,1.33181292]
[1773256268965,11.44247388,87.394,87.371,1.33181292]
[1773256269165,1.3319391,87.402,87.371,1.33181292]
[1773256269554,1.3319391,87.4,87.371,1.33181292]
[1773256269969,1.3319391,87.4,87.368,11.44581549]
[1773256270265,1.3319391,87.399,87.362,11.44655129]
[1773256270763,1.3319391,87.399,87.363,1.33181292]
[1773256271171,1.3319391,87.399,87.371,1.33181292]
[1773256271873,1.3319391,87.397,87.371,12.7771703]
[1773256273168,1.3319391,87.395,87.371,11.44535738]
[1773256273874,1.3319391,87.395,87.37,2.93549971]
[1773256275169,1.3319391,87.393,87.342,1.33181292]
[1773256275371,1.3319391,87.379,87.341,1.33181292]
[1773256276977,1.3319391,87.391,87.345,1.33181292]
[1773256277170,1.3319391,87.387,87.351,1.33181292]
[1773256277372,1.3319391,87.387,87.352,11.44793479]
[1773256277569,1.3319391,87.387,87.353,1.33181292]
[1773256279078,1.3319391,87.379,87.349,1.33181292]
[1773256279275,1.3319391,87.377,87.349,1.33181292]
[1773256279480,1.3319391,87.377,87.35,2.93549971]
[1773256279773,11.44400037,87.383,87.351,1.33181292]
[1773256279977,0.86726011,87.382,87.351,1.33181292]
[1773256280579,2.93549971,87.38,87.35,11.4481969]
[1773256281465,28.60660967,87.393,87.351,1.46413556]
[1773256281682,11.4430878,87.389,87.361,1.46413556]
[1773256282080,1.36726011,87.388,87.361,1.46413556]
[1773256283579,1.36726011,87.386,87.361,0.96413556]
[1773256283773,1.36726011,87.379,87.34,2.93549971]
[1773256284666,1.36726011,87.369,87.336,72.84993805]
[1773256284882,1.36726011,87.369,87.336,11.44993805]
[1773256285566,1.36726011,87.367,87.332,1.46413556]
[1773256286166,2.93549971,87.38,87.331,11.45068761]
[1773256286167,11.44403653,87.382,87.351,1.46413556]
[1773256286887,11.44353465,87.386,87.361,1.46413556]
[1773256287887,11.44353465,87.386,87.363,1.46413556]
[1773256289590,12.81079476,87.386,87.363,1.46413556]
[1773256289885,1.36726011,87.385,87.363,1.46413556]
[1773256290091,12.81100267,87.384,87.363,1.46413556]
[1773256290390,12.81100267,87.384,87.363,12.91052693]
[1773256290990,12.81100267,87.384,87.363,1.46413556]
[1773256291489,12.81100267,87.384,87.363,12.91061961]
[1773256292291,11.44374256,87.384,87.364,1.46413556]
[1773256293194,1.36726011,87.383,87.352,1.46413556]
[1773256294598,12.81126459,87.382,87.354,1.46413556]
[1773256294975,1.36726011,87.381,87.354,1.46413556]
[1773256295178,1.36726011,87.413,87.371,1.46413556]
[1773256295389,1.36726011,87.411,87.381,1.46413556]
[1773256296792,11.44033863,87.41,87.391,1.46413556]
[1773256297180,11.43956817,87.416,87.391,1.46413556]
[1773256297380,11.43912966,87.42,87.401,1.46413556]
[1773256300279,1.42504034,87.419,87.38,2.93549971]
[1773256300487,1.42504034,87.409,87.367,11.44588786]
[1773256300791,1.42504034,87.409,87.317,45.80982134]
[1773256300792,1.42504034,87.389,87.355,1.33372053]
[1773256302000,1.42504034,87.389,87.335,2.92]
[1773256302001,1.42504034,87.379,87.349,11.44828522]
[1773256303804,1.42504034,87.377,87.34,2.93549971]
[1773256303996,1.42504034,87.369,87.338,12.78349038]
[1773256304204,1.42504034,87.369,87.339,1.33372053]
[1773256304507,3.69383402,87.401,87.338,11.44976985]
[1773256304508,1.46630337,87.431,87.36,2.93549971]
[1773256304706,1.46630337,87.43,87.385,0.14216157]
[1773256304910,4.40180308,87.43,87.39,2.93549971]
[1773256305094,11.43759078,87.431,87.365,1.14462313]
[1773256305095,2.93549971,87.41,87.365,1.14462313]
[1773256305410,1.46630337,87.409,87.37,2.93549971]
[1773256305910,1.46630337,87.409,87.381,11.44413545]
[1773256308111,1.46630337,87.399,87.366,11.44610031]
[1773256308314,1.46630337,87.399,87.37,2.93549971]
[1773256310007,1.46630337,87.397,87.371,11.44544528]
[1773256310209,1.46630337,87.419,87.371,40.05905849]
[1773256310503,1.46630337,87.417,87.38,2.93549971]
[1773256311594,1.46630337,87.417,87.38,2.93311931]
[1773256312405,1.46630337,87.415,87.381,11.44413545]
[1773256312990,1.46630337,87.409,87.37,2.93311931]
[1773256313201,1.46630337,87.409,87.315,45.81086219]
[1773256313202,1.46630337,87.389,87.362,11.44662439]
[1773256313402,1.42491469,87.415,87.362,11.44662439]
[1773256313720,1.46630337,87.489,87.424,4.82477569]
[1773256314005,1.46630337,87.489,87.411,0.14216157]
[1773256314006,1.46630337,87.488,87.426,0.14216157]
[1773256314213,1.46630337,87.469,87.43,2.93311931]
[1773256314415,1.46630337,87.469,87.441,11.43628275]
[1773256319111,1.46630337,87.469,87.43,7.32255416]
[1773256319519,1.46630337,87.469,87.44,7.32255416]
[1773256319820,7.32255416,87.48,87.44,7.32255416]
[1773256319821,1.46630337,87.467,87.44,7.32255416]
[1773256321206,1.46630337,87.467,87.441,11.43628275]
[1773256322215,1.46630337,87.465,87.424,28.59624239]
[1773256322418,1.46630337,87.465,87.43,7.32255416]
[1773256322817,1.46630337,87.459,87.425,11.43837575]
[1773256323023,40.01554889,87.466,87.403,28.60294515]
[1773256323024,1.46630337,87.439,87.403,28.60294515]
[1773256323224,1.46630337,87.439,87.411,11.44020775]
[1773256324119,1.46630337,87.437,87.405,2.92]
[1773256324321,1.46630337,87.437,87.373,91.56124434]
[1773256324322,1.46630337,87.419,87.388,2.92]
[1773256324513,1.46630337,87.419,87.384,11.44374256]
[1773256324708,1.46630337,87.409,87.375,11.44492131]
[1773256325122,1.46630337,87.409,87.375,40.0572246]
[1773256325640,18.7629804,87.41,87.375,40.0572246]
[1773256325641,12.90522467,87.421,87.39,7.32255416]
[1773256326013,1.46630337,87.421,87.39,7.32255416]
[1773256326534,1.46630337,87.421,87.38,7.32255416]
[1773256327609,1.46630337,87.419,87.381,11.44413545]
[1773256328329,1.46630337,87.419,87.381,40.05447408]
[1773256329631,1.46630337,87.417,87.39,7.32255416]
[1773256330634,1.46630337,87.426,87.39,7.32255416]
[1773256330942,1.46630337,87.419,87.39,7.32255416]
[1773256331113,1.46630337,87.419,87.381,40.05447408]
[1773256332128,1.46630337,87.419,87.39,7.32255416]
[1773256332629,45.71533161,87.498,87.39,7.32255416]
[1773256332925,7.32255416,87.46,87.42,7.32255416]
[1773256333120,0.14216157,87.459,87.42,7.32255416]
[1773256334730,1.46609218,87.456,87.421,11.43889912]
[1773256335927,1.46609218,87.439,87.417,2.92]
[1773256336116,1.46609218,87.429,87.396,2.92]
[1773256337218,1.46609218,87.419,87.396,2.92]
[1773256338537,1.46609218,87.419,87.397,11.44204034]
[1773256339129,1.46609218,87.417,87.397,11.44204034]
[1773256339333,1.46609218,87.409,87.377,4.27815577]
[1773256339516,7.32255416,87.39,87.359,1.35815577]
[1773256339720,1.46609218,87.389,87.356,14.36733747]
[1773256340024,1.46609218,87.389,87.357,1.33634044]
[1773256340226,1.46609218,87.389,87.361,1.33634044]
[1773256340732,3.06216157,87.417,87.356,2.92]
[1773256340733,1.39453113,87.387,87.356,2.92]
[1773256340939,1.39453113,87.387,87.357,11.44727955]
[1773256342516,1.39453113,87.379,87.356,2.92]
[1773256342736,1.39453113,87.377,87.356,2.92]
[1773256342919,7.32255416,87.37,87.356,0.28225965]
[1773256343117,0.14216157,87.369,87.325,1.46449515]
[1773256343329,0.14216157,87.369,87.316,2.92]
[1773256343330,7.32255416,87.36,87.327,1.46449515]
[1773256343721,42.97584929,87.378,87.316,4.38449515]
[1773256343722,7.32255416,87.34,87.316,4.38449515]
[1773256343921,0.14216157,87.367,87.316,4.38449515]
[1773256343922,7.32255416,87.35,87.316,4.38449515]
[1773256344318,7.32255416,87.36,87.321,1.46449515]
[1773256345138,11.44701747,87.359,87.323,1.46449515]
[1773256346841,11.44701747,87.359,87.325,1.46449515]
[1773256348046,7.32255416,87.31,87.281,1.46449515]
[1773256348526,7.32255416,87.32,87.284,11.45679022]
[1773256348729,7.32255416,87.31,87.281,1.46449515]
[1773256349135,7.32255416,87.31,87.283,11.45693915]
[1773256349726,7.32255416,87.31,87.279,7.31447399]
[1773256349727,11.45226124,87.319,87.291,1.46449515]
[1773256350237,11.45226124,87.319,87.292,1.46449515]
[1773256350541,11.45094985,87.329,87.301,1.46449515]
[1773256350720,7.32255416,87.33,87.301,1.46449515]
[1773256351235,0.14216157,87.338,87.301,12.91905268]
[1773256351429,7.32255416,87.33,87.302,1.46449515]
[1773256352142,0.14216157,87.338,87.302,1.46449515]
[1773256352639,11.45094985,87.329,87.302,1.46449515]
[1773256352850,11.45094985,87.329,87.304,1.46449515]
[1773256353140,7.32255416,87.34,87.303,11.4543601]
[1773256353141,7.32255416,87.35,87.31,7.32255416]
[1773256353325,40.06832548,87.351,87.304,1.46449515]
[1773256353326,7.32255416,87.34,87.304,1.46449515]
[1773256354832,7.32255416,87.33,87.277,1.46449515]
[1773256355138,7.32255416,87.32,87.277,1.46449515]
[1773256355440,7.32255416,87.32,87.285,1.46449515]
[1773256355632,7.32255416,87.32,87.285,12.92110363]
[1773256356245,7.32255416,87.32,87.291,11.45593474]
[1773256356558,7.32255416,87.32,87.291,12.92042989]
[1773256356735,40.07373566,87.339,87.283,28.64232784]
[1773256356736,11.45094985,87.329,87.294,1.46449515]
[1773256356934,11.45094985,87.329,87.301,1.46449515]
[1773256357136,11.45025305,87.335,87.311,1.46449515]
[1773256358247,11.44963876,87.339,87.311,1.46449515]
[1773256359132,11.44963876,87.339,87.313,1.46449515]
[1773256360331,11.44832797,87.349,87.315,1.46449515]
[1773256361547,11.44754164,87.355,87.321,1.46449515]
[1773256362052,11.44754164,87.355,87.314,11.45291705]
[1773256362053,7.32255416,87.35,87.314,11.45291705]
[1773256362637,7.32255416,87.34,87.302,1.46449515]
[1773256363042,7.32255416,87.34,87.291,28.63953562]
[1773256363043,7.32255416,87.32,87.29,0.2]
[1773256363250,40.21130946,87.349,87.29,0.2]
[1773256363251,7.32255416,87.3,87.29,1e-08]
[1773256364744,11.45488493,87.299,87.29,1e-08]
[1773256369051,40.09209726,87.299,87.27,0.2]
[1773256369359,7.32255416,87.29,87.27,1.66449515]
[1773256369563,40.09209726,87.299,87.27,1.66449515]
[1773256369856,40.09209726,87.299,87.272,1.46449515]
[1773256370552,3.69383402,87.329,87.281,1.46449515]
[1773256370853,7.32255416,87.3,87.273,1.46449515]
[1773256371046,11.45488493,87.299,87.273,1.46449515]
[1773256371643,7.32255416,87.29,87.27,0.2]
[1773256372245,40.09209726,87.299,87.271,1.46449515]
[1773256372446,11.45488493,87.299,87.272,1.46449515]
[1773256373360,11.45488493,87.299,87.274,1.46449515]
[1773256374857,11.45382176,87.308,87.274,1.46449515]
[1773256375457,7.3525986,87.3,87.274,1.46449515]
[1773256375853,11.45382176,87.308,87.276,1.46449515]
[1773256377364,11.45382176,87.308,87.278,1.46449515]
[1773256380168,28.63393235,87.309,87.28,1.46449515]
[1773256380464,11.45265472,87.316,87.28,1.46449515]
[1773256380661,7.3525986,87.31,87.28,1.46449515]
[1773256382058,7.3525986,87.3,87.27,11.65860011]
[1773256382263,7.3525986,87.3,87.271,1.46449515]
[1773256383567,11.45265472,87.316,87.281,1.46449515]
[1773256383869,40.08429153,87.316,87.281,1.46449515]
[1773256384164,7.3525986,87.31,87.281,1.46449515]
[1773256384349,40.08429153,87.316,87.281,1.46449515]
[1773256386465,40.08429153,87.316,87.272,40.10450087]
[1773256386466,11.45265472,87.316,87.283,1.46449515]
[1773256386663,11.45265472,87.316,87.291,1.46449515]
[1773256389772,11.45108098,87.328,87.293,1.46449515]
[1773256389970,40.09979319,87.328,87.293,1.46449515]
[1773256390271,0.02100976,87.327,87.293,1.46449515]
[1773256390489,0.02100976,87.327,87.267,0.14216157]
[1773256390490,0.0213505,87.31,87.286,1.46449515]
[1773256391178,0.0213505,87.318,87.286,1.46449515]
[1773256391789,0.0213505,87.318,87.288,1.46449515]
[1773256392786,40.08291436,87.319,87.288,1.46449515]
[1773256393892,11.45108098,87.328,87.291,1.46449515]
[1773256394972,40.07878343,87.328,87.291,1.46449515]
[1773256395189,0.0226748,87.327,87.291,1.46449515]
[1773256395767,40.07878343,87.328,87.292,11.45580351]
[1773256396071,40.07878343,87.328,87.293,1.46449515]
[1773256396589,40.07878343,87.328,87.301,1.46449515]
[1773256397665,2.93886015,87.33,87.301,1.46449515]
[1773256398472,2.96279945,87.33,87.301,1.46449515]
[1773256399184,0.0239393,87.329,87.301,1.46449515]
[1773256399988,0.0239393,87.329,87.288,2.92]
[1773256399989,0.02454997,87.309,87.271,1.47240562]
[1773256400180,2.93886015,87.31,87.273,1.47240562]
[1773256400380,0.02454997,87.318,87.281,1.47240562]
[1773256401883,0.02454997,87.318,87.282,11.45711601]
[1773256402083,0.02454997,87.318,87.283,1.47240562]
[1773256403190,2.93886015,87.31,87.283,1.47240562]
[1773256404194,11.45357294,87.309,87.283,1.47240562]
[1773256405699,0.02629956,87.308,87.283,1.47240562]
[1773256405999,40.08750529,87.309,87.283,1.47240562]
[1773256407101,11.45357294,87.309,87.285,1.47240562]
[1773256407795,0.02685632,87.308,87.285,1.47240562]
[1773256407999,0.02685632,87.299,87.272,1.47240562]
[1773256409805,0.02740037,87.298,87.27,0.2]
[1773256409997,0.02740037,87.298,87.271,1.47240562]
[1773256411303,11.45488493,87.299,87.272,1.47240562]
[1773256412185,0.02793199,87.307,87.274,1.47240562]
[1773256414387,0.02870674,87.292,87.27,0.2]
[1773256414590,2.93886015,87.3,87.259,0.24506147]
[1773256414591,0.02870674,87.289,87.259,0.24506147]
[1773256414908,0.02870674,87.289,87.22,0.2]
[1773256414909,2.93886015,87.27,87.239,1.47884852]
[1773256415202,2.93886015,87.27,87.24,1.47884852]
[1773256415506,2.92,87.288,87.251,1.47884852]
[1773256416507,40.09760903,87.287,87.251,1.47884852]
[1773256417293,2.93886015,87.28,87.243,1.47884852]
[1773256417802,2.93886015,87.27,87.243,1.47884852]
[1773256418799,0.14216157,87.279,87.244,1.47884852]
[1773256418800,11.45882272,87.269,87.244,1.47884852]
[1773256420811,28.63761217,87.298,87.263,1.47884852]
[1773256428217,11.45488493,87.299,87.265,1.47884852]
[1773256428517,11.45488493,87.299,87.271,1.47884852]
[1773256430516,11.45304822,87.313,87.288,1.47884852]
[1773256430832,40.08566879,87.313,87.288,1.47884852]
[1773256431003,11.45304822,87.313,87.288,1.47884852]
[1773256431200,102.8,87.345,87.272,40.10450087]
[1773256431201,11.59180033,87.339,87.301,1.47884852]
[1773256431399,40.07373566,87.339,87.301,1.47884852]
[1773256431598,11.44963876,87.339,87.311,1.47884852]
[1773256432719,11.44832797,87.349,87.321,1.47884852]
[1773256433098,37.97588217,87.358,87.312,11.4531794]
[1773256433099,9.35787575,87.358,87.34,2.93886015]
[1773256433301,11.44727955,87.357,87.34,1.47884852]
[1773256433898,11.44727955,87.357,87.332,1.47884852]
[1773256434920,11.44727955,87.357,87.321,1.47884852]
[1773256435915,40.06547843,87.357,87.321,1.47884852]
[1773256436414,40.06547843,87.357,87.323,1.47884852]
[1773256436810,9.35787575,87.358,87.331,1.47884852]
[1773256437005,9.35787575,87.358,87.306,2.92]
[1773256437006,20.80508421,87.358,87.321,1.47884852]
[1773256437225,49.42295549,87.358,87.321,1.47884852]
[1773256437914,49.42295549,87.358,87.331,1.47884852]
[1773256441408,9.35787575,87.358,87.341,1.47884852]
[1773256441613,40.06547843,87.357,87.326,1.47884852]
[1773256441928,2.93687165,87.34,87.311,1.47884852]
[1773256443629,11.44963876,87.339,87.311,1.47884852]
[1773256444831,11.44963876,87.339,87.31,2.93687165]
[1773256444832,28.62151204,87.347,87.313,1.47884852]
[1773256445338,2.93687165,87.34,87.313,1.47884852]
[1773256446330,28.62151204,87.347,87.313,1.47884852]
[1773256447334,2.93687165,87.34,87.3,2.93687165]
[1773256447515,2.93687165,87.33,87.298,1.47884852]
[1773256448529,2.92,87.332,87.298,1.47884852]
[1773256448710,2.93687165,87.33,87.298,1.47884852]
[1773256449918,40.07832449,87.329,87.298,1.47884852]
[1773256451315,2.93687165,87.32,87.29,1.47884852]
[1773256452138,2.93687165,87.32,87.282,1.47884852]
[1773256452139,40.08291436,87.319,87.282,1.47884852]
[1773256452328,40.08291436,87.319,87.28,2.93687165]
[1773256452526,2.93687165,87.31,87.274,1.47884852]
[1773256452732,11.45226124,87.319,87.291,1.47884852]
[1773256452940,2.93687165,87.34,87.301,1.47884852]
[1773256453130,2.93687165,87.34,87.279,3.69383402]
[1773256453131,14.36898333,87.344,87.311,1.47884852]
[1773256453829,2.93687165,87.34,87.311,1.47884852]
[1773256454916,40.07388847,87.339,87.311,1.47884852]
[1773256457444,11.44963876,87.339,87.313,1.47884852]
[1773256458943,40.06967972,87.348,87.321,1.47884852]
[1773256459130,11.44845903,87.348,87.331,1.47884852]
[1773256460331,40.06960662,87.348,87.331,1.47884852]
[1773256460931,11.44845903,87.348,87.331,1.47884852]
[1773256461241,12.86457156,87.348,87.32,2.93687165]
[1773256462552,11.44872117,87.346,87.32,2.93687165]
[1773256463142,11.44872117,87.346,87.321,1.44534636]
[1773256463451,40.07052411,87.346,87.321,1.44534636]
[1773256464446,1.41611253,87.345,87.307,2.92]
[1773256464641,1.41611253,87.345,87.31,2.93687165]
[1773256465954,1.41611253,87.343,87.31,2.93687165]
[1773256466753,1.41611253,87.343,87.311,1.44534636]
[1773256468157,1.41611253,87.341,87.311,1.44534636]
[1773256469351,1.41611253,87.339,87.311,1.44534636]
[1773256471050,1.41611253,87.339,87.301,1.44534636]
[1773256471250,1.41611253,87.337,87.301,1.44534636]
[1773256472132,11.44976985,87.338,87.311,1.44534636]
[1773256472653,7.23301048,87.349,87.302,11.4544913]
[1773256472654,6.63934436,87.349,87.331,1.44534636]
[1773256472854,11.44722278,87.358,87.342,0.62735115]
[1773256473148,1.41611253,87.375,87.35,2.93687165]
[1773256473149,11.44583829,87.368,87.35,2.93687165]
[1773256473353,11.44541805,87.372,87.35,3.5642228]
[1773256473734,11.4430878,87.389,87.361,0.627441]
[1773256473934,11.4430878,87.389,87.37,2.93687165]
[1773256474455,1.48430166,87.388,87.36,2.93687165]
[1773256474636,1.48430166,87.388,87.35,2.93687165]
[1773256475155,1.48430166,87.388,87.36,2.93687165]
[1773256475356,1.48430166,87.386,87.36,2.93687165]
[1773256475856,1.48430166,87.379,87.34,2.93687165]
[1773256476155,1.48430166,87.379,87.34,14.38627596]
[1773256476354,1.48430166,87.379,87.342,11.44924549]
[1773256476751,1.48430166,87.379,87.35,2.93687165]
[1773256478053,1.48430166,87.377,87.34,2.93687165]
[1773256478251,1.48430166,87.377,87.341,11.44937658]
[1773256480456,1.48430166,87.375,87.34,2.93687165]
[1773256482169,1.48430166,87.375,87.341,11.44937658]
[1773256482660,1.48430166,87.373,87.34,2.93687165]
[1773256483458,11.44531428,87.372,87.34,2.93687165]
[1773256483767,1.48430166,87.371,87.34,2.93687165]
[1773256485265,1.48430166,87.371,87.341,11.44937658]
[1773256485762,1.48430166,87.369,87.331,11.45068761]
[1773256486063,1.48430166,87.369,87.34,2.93687165]
[1773256486957,1.48430166,87.369,87.332,1.14505564]
[1773256487155,1.48430166,87.369,87.33,2.93687165]
[1773256487762,1.48430166,87.367,87.34,2.93687165]
[1773256489455,11.44610031,87.366,87.341,11.44937658]
[1773256489651,11.44563897,87.37,87.35,2.93687165]
[1773256489857,1.48430166,87.369,87.35,2.93687165]
[1773256490671,1.48430166,87.369,87.341,11.44937658]
[1773256490851,1.48430166,87.369,87.34,2.93687165]
[1773256491051,1.48430166,87.369,87.341,11.44937658]
[1773256492860,11.44583829,87.368,87.35,2.93687165]
[1773256493264,3.03687165,87.39,87.36,2.93687165]
[1773256493265,28.61006987,87.382,87.36,2.93687165]
[1773256493565,11.44413545,87.381,87.36,2.93687165]
[1773256495071,1.48430166,87.38,87.35,2.93687165]
[1773256495375,1.48430166,87.379,87.34,2.93687165]
[1773256495569,1.48430166,87.379,87.34,2.93590773]
[1773256496869,2.93590773,87.38,87.341,11.44937658]
[1773256496870,1.48430166,87.377,87.341,11.44937658]
[1773256498575,1.48430166,87.375,87.341,11.44937658]
[1773256498960,1.48430166,87.375,87.34,2.93590773]
[1773256500775,1.48430166,87.373,87.341,11.44937658]
[1773256501166,40.05768305,87.374,87.35,2.93590773]
[1773256501372,11.4450523,87.374,87.35,2.93590773]
[1773256501554,40.05401569,87.382,87.35,2.93590773]
[1773256501753,11.44400448,87.382,87.36,2.93590773]
[1773256502153,1.48430166,87.381,87.342,1.14492454]
[1773256502358,1.48430166,87.359,87.32,2.93590773]
[1773256502555,1.48430166,87.357,87.32,2.93590773]
[1773256502768,1.48430166,87.357,87.318,11.45228985]
[1773256503475,1.48430166,87.357,87.32,2.93590773]
[1773256503656,11.4459693,87.367,87.34,2.93590773]
[1773256503860,1.48430166,87.366,87.34,2.93590773]
[1773256504571,1.48430166,87.364,87.33,2.93590773]
[1773256505488,1.48430166,87.364,87.34,2.93590773]
[1773256507366,1.48430166,87.362,87.331,11.45059208]
[1773256508584,1.48430166,87.362,87.323,1.14517366]
[1773256508776,1.48430166,87.359,87.32,2.93590773]
[1773256509372,1.48430166,87.357,87.32,2.93590773]
[1773256509679,1.48430166,87.357,87.321,11.45199894]
[1773256512382,1.48430166,87.355,87.321,11.45199894]
[1773256513488,11.44767268,87.354,87.321,11.45199894]
[1773256513682,1.48430166,87.353,87.321,11.45199894]
[1773256515371,12.93223645,87.352,87.321,11.45199894]
[1773256515775,12.93223645,87.352,87.33,2.93590773]
[1773256516174,1.48430166,87.351,87.321,11.45199894]
[1773256517391,1.48430166,87.339,87.309,2.92]
[1773256517591,1.48430166,87.339,87.3,2.93590773]
[1773256518692,2.93590773,87.34,87.3,2.93590773]
[1773256518693,1.48430166,87.337,87.3,2.93590773]
[1773256519279,1.48430166,87.337,87.3,14.39058521]
[1773256519882,1.48430166,87.337,87.3,2.93590773]
[1773256520184,1.48430166,87.329,87.3,2.93590773]
[1773256522193,1.48430166,87.327,87.294,11.4555187]
[1773256522390,0.98430166,87.327,87.295,0.50641068]
[1773256522595,0.98430166,87.327,87.301,0.50650629]
[1773256522798,11.45108098,87.328,87.301,0.50650629]
[1773256524498,11.45108098,87.328,87.302,11.96118552]
[1773256524884,11.45108098,87.328,87.303,0.50669422]
[1773256525684,1.39791181,87.327,87.303,0.50669422]
[1773256525980,11.45108098,87.328,87.28,2.93590773]
[1773256525981,1.39791181,87.319,87.28,2.93590773]
[1773256526190,1.39791181,87.289,87.253,11.46083669]
[1773256526387,1.39791181,87.287,87.254,2.92]
[1773256526989,28.64082118,87.288,87.255,1.37112918]
[1773256527392,40.09714965,87.288,87.255,12.83179046]
[1773256527800,11.45632847,87.288,87.261,1.37112918]
[1773256527996,11.45632847,87.288,87.255,11.46066128]
[1773256527997,40.08153728,87.322,87.264,0.14216157]
[1773256528301,2.93590773,87.31,87.271,1.37112918]
[1773256529104,1.39791181,87.307,87.272,12.829558]
[1773256529595,1.39791181,87.307,87.273,1.37112918]
[1773256531294,1.39791181,87.305,87.273,1.37112918]
[1773256532008,1.39791181,87.305,87.273,11.45823128]
[1773256532188,1.39791181,87.305,87.274,1.37112918]
[1773256533091,1.39791181,87.299,87.27,1.37112918]
[1773256533291,11.45501615,87.298,87.271,1.37112918]
[1773256533806,11.45501615,87.298,87.254,1.14607926]
[1773256533807,1.39791181,87.279,87.24,2.93590773]
[1773256534111,1.39791181,87.279,87.234,1.37112918]
[1773256534400,1.39791181,87.279,87.241,1.37112918]
[1773256534704,3.06216157,87.287,87.23,0.2]
[1773256534705,1.39791181,87.259,87.23,0.2]
[1773256534915,1.39791181,87.259,87.23,3.13590773]
[1773256535218,19.50259065,87.278,87.251,11.46118669]
[1773256535394,30.96033675,87.278,87.25,2.93590773]
[1773256535590,1.39791181,87.277,87.24,2.93590773]